bitfinex-derivatives/quotes_ETHF0:USTF0_20250427
["timestamp","ask_amount","ask_price","bid_price","bid_amount"]
[1745764284083,7.7761,1800.9,1800.8,43.51456]
[1745764284284,7.7761,1800.9,1800.8,40.8]
[1745764284676,7.87316749,1800.9,1800.8,40.8]
[1745764285384,1.11034,1800.7,1800.5,2.71471]
[1745764285581,1.11043,1800.6,1800.4,1.11048]
[1745764285781,2.34557,1800.5,1800.3,1.11054]
[1745764285982,1.6472,1800.4,1800.3,2.71484]
[1745764286280,5.3692,1800.4,1800.3,2.71484]
[1745764286482,5.3692,1800.4,1800.3,43.51484]
[1745764286678,6.6795,1800.4,1800.3,43.51484]
[1745764286879,6.6795,1800.4,1800.3,43.51487]
[1745764287180,7.79,1800.4,1800.3,40.8]
[1745764287378,10.9978,1800.4,1800.3,40.8]
[1745764287881,11.09489591,1800.4,1800.3,40.8]
[1745764288688,11.09489805,1800.4,1800.3,40.8]
[1745764288883,1.11062,1800.3,1800.1,1.592]
[1745764289075,6.4459,1800.3,1800.1,1.11069]
[1745764289275,1.315,1800.2,1800.1,1.11069]
[1745764289479,1.315,1800.2,1800.1,41.91069]
[1745764289480,2.923,1800.2,1800.1,41.91069]
[1745764290088,6.645,1800.2,1800.1,41.91069]
[1745764291892,6.645,1800.2,1800.1,40.8]
[1745764292091,7.75563,1800.2,1800.1,40.8]
[1745764293686,6.645,1800.2,1800.1,41.91069]
[1745764293887,6.645,1800.2,1800.1,43.57629]
[1745764295689,5.037,1800.2,1800.1,43.57629]
[1745764296189,3.722,1800.2,1800.1,43.57629]
[1745764297592,7.4207,1800.6,1800.5,1.11044]
[1745764297795,7.4207,1800.6,1800.3,4.1792]
[1745764297981,7.4207,1800.6,1800.4,1.6224]
[1745764298182,1.7021,1800.5,1800.4,2.7329]
[1745764298900,2.81254,1800.5,1800.4,2.7329]
[1745764299091,6.53454,1800.5,1800.4,2.7329]
[1745764299292,5.4241,1800.5,1800.4,2.7329]
[1745764299496,6.53454,1800.5,1800.4,2.7329]
[1745764299697,5.4241,1800.5,1800.4,2.7329]
[1745764300497,6.53454,1800.5,1800.4,2.7329]
[1745764300699,5.4241,1800.5,1800.4,2.7329]
[1745764300992,6.53454,1800.5,1800.4,1.6224]
[1745764303497,6.53454,1800.5,1800.3,2.43593]
[1745764303498,1.1105,1800.4,1800.3,1.3254]
[1745764303699,2.8258,1800.4,1800.2,2.8211]
[1745764303899,1.2381,1800.3,1800.2,2.8211]
[1745764304197,4.9601,1800.3,1800.2,2.8211]
[1745764304592,3.722,1800.3,1800.2,2.8211]
[1745764316714,4.9986,1800.3,1800.2,2.8211]
[1745764319806,6.3157,1800.3,1800.2,2.8211]
[1745764320014,7.9273,1800.3,1800.2,2.8211]
[1745764320810,7.9273,1800.3,1800.2,1.11063]
[1745764320811,9.0379,1800.3,1800.2,1.11063]
[1745764321014,9.0379,1800.3,1800.1,45.11846]
[1745764321206,5.93003,1800.2,1800.1,40.8]
[1745764321413,1.1107,1800.1,1799.9,1.11078]
[1745764321713,2.42785,1800.0,1799.8,1.11083]
[1745764321901,1.6116,1799.9,1799.8,1.11083]
[1745764322311,5.3336,1799.9,1799.8,41.91083]
[1745764325916,6.44441,1799.9,1799.8,41.91083]
[1745764326112,6.44441,1799.9,1799.8,40.8]
[1745764326322,1.11096,1799.7,1799.5,1.11102]
[1745764326618,2.5932,1799.6,1799.5,1.11102]
[1745764326918,5.3361,1799.6,1799.5,40.8]
[1745764327110,9.0581,1799.6,1799.5,41.91106]
[1745764327418,11.1549,1799.6,1799.5,40.8]
[1745764327719,12.2659,1799.6,1799.5,40.8]
[1745764328812,12.36282734,1799.6,1799.5,40.8]
[1745764329216,1.11112,1799.4,1799.3,0.03021]
[1745764329520,4.31892,1799.4,1799.3,0.03021]
[1745764329713,4.31892,1799.4,1799.3,40.83021]
[1745764330219,8.04092,1799.4,1799.3,40.83021]
[1745764330927,12.02883476,1799.4,1799.3,40.83021]
[1745764331412,17.02883476,1799.4,1799.3,0.03021]
[1745764332820,11.93192,1799.4,1799.3,0.03021]
[1745764334319,1.1112,1799.3,1799.1,41.91126]
[1745764334522,4.0742,1799.3,1799.1,41.91126]
[1745764335021,4.09794,1799.2,1799.1,40.8]
[1745764335322,7.81994,1799.2,1799.1,40.8]
[1745764335523,7.81994,1799.2,1799.1,41.91131]
[1745764336125,7.81994,1799.2,1799.1,40.8]
[1745764336816,11.02774,1799.2,1799.1,40.8]
[1745764337421,11.02774,1799.2,1799.0,1.11136]
[1745764337626,1.7384,1799.1,1799.0,1.11136]
[1745764337920,1.7384,1799.1,1799.0,41.91136]
[1745764338120,5.4604,1799.1,1799.0,41.91136]
[1745764339015,6.57171,1799.1,1799.0,41.91136]
[1745764339625,5.4604,1799.1,1799.0,41.91136]
[1745764341225,6.57171,1799.1,1799.0,41.91136]
[1745764341531,5.45616037,1799.1,1799.0,41.91136]
[1745764341825,6.56747037,1799.1,1799.0,41.91136]
[1745764342026,5.45616037,1799.1,1799.0,41.91136]
[1745764345428,3.722,1799.1,1799.0,41.91136]
[1745764345832,3.722,1799.1,1799.0,43.13226]
[1745764351135,3.722,1799.1,1799.0,41.91136]
[1745764351333,5.3177,1799.1,1799.0,41.91136]
[1745764351836,3.722,1799.1,1799.0,41.91136]
[1745764353736,0.78000001,1799.1,1799.0,46.91136]
[1745764353923,0.78000001,1799.1,1799.0,48.61676]
[1745764355433,0.11295201,1799.1,1799.0,48.61676]
[1745764357141,0.11295201,1799.1,1799.0,43.61676]
[1745764362640,0.11295201,1799.1,1799.0,40.8]
[1745764362641,1.22426201,1799.1,1799.0,40.8]
[1745764362834,5.50226201,1799.1,1799.0,40.8]
[1745764363642,1.11141,1799.0,1798.8,4.06306]
[1745764363941,1.11143,1798.9,1798.8,4.06306]
[1745764364134,1.6431,1799.0,1798.9,1.11143]
[1745764364836,2.75447,1799.0,1798.8,43.7516]
[1745764365038,1.6431,1799.0,1798.9,1.11143]
[1745764365246,5.3651,1799.0,1798.9,1.11143]
[1745764365842,6.47647,1799.0,1798.9,1.11143]
[1745764367538,5.3651,1799.0,1798.9,1.11143]
[1745764367846,6.47648,1799.0,1798.8,44.86306]
[1745764368046,1.11143,1798.9,1798.8,40.8]
[1745764368245,1.6055,1798.9,1798.8,41.91149]
[1745764368845,2.71693,1798.9,1798.8,41.91149]
[1745764369147,6.43893,1798.9,1798.8,41.91149]
[1745764370241,3.722,1798.9,1798.8,41.91149]
[1745764371346,5.3793,1798.9,1798.8,41.91149]
[1745764373436,6.49073,1798.9,1798.8,41.91149]
[1745764373841,5.3793,1798.9,1798.8,41.91149]
[1745764374651,6.49073,1798.9,1798.8,40.8]
[1745764375550,6.49073,1798.9,1798.8,41.91149]
[1745764375850,5.3793,1798.9,1798.8,41.91149]
[1745764376153,5.3793,1798.9,1798.8,40.8]
[1745764376154,6.49073,1798.9,1798.8,40.8]
[1745764376352,5.3793,1798.9,1798.8,41.91149]
[1745764378551,6.49073,1798.9,1798.8,40.8]
[1745764378851,5.3793,1798.9,1798.8,41.91149]
[1745764379053,3.722,1798.9,1798.8,41.91149]
[1745764379245,3.722,1798.9,1798.8,43.15389]
[1745764380957,3.722,1798.9,1798.8,46.36169]
[1745764381353,0.5596474,1798.9,1798.8,55.24569]
[1745764381552,3.2078,1799.5,1799.4,1.11112]
[1745764381859,3.2078,1799.5,1799.1,2.77825]
[1745764381860,1.3149,1799.7,1799.3,3.2078]
[1745764382156,1.1111,1799.5,1799.2,5.36902]
[1745764382354,1.6736,1799.4,1799.3,2.73258]
[1745764382544,2.78466,1799.5,1799.4,1.6214]
[1745764382749,2.78466,1799.5,1799.2,1.3532]
[1745764382750,1.11113,1799.4,1799.2,1.3532]
[1745764382952,1.11113,1799.4,1799.0,6.1124]
[1745764382953,2.34568,1799.3,1799.0,6.1124]
[1745764383153,1.6736,1799.2,1799.1,2.7327]
[1745764383462,2.78484,1799.2,1799.1,1.6214]
[1745764383665,2.78484,1799.2,1798.8,43.19466]
[1745764383666,1.11131,1799.1,1798.8,43.19466]
[1745764383867,2.46119,1799.0,1798.8,43.57666]
[1745764384059,1.6766,1798.9,1798.8,43.57666]
[1745764384265,6.3063,1799.0,1798.9,2.77663]
[1745764384468,7.41767,1799.0,1798.9,1.6652]
[1745764384661,1.11143,1798.9,1798.8,40.8]
[1745764384859,2.78803,1798.9,1798.8,40.8]
[1745764385265,6.51003,1798.9,1798.8,40.8]
[1745764385865,5.3986,1798.9,1798.8,40.8]
[1745764386565,6.51003,1798.9,1798.8,40.8]
[1745764387370,6.51003,1798.9,1798.7,2.77675]
[1745764387561,1.63,1798.8,1798.7,2.77675]
[1745764387867,1.63,1798.8,1798.7,43.57675]
[1745764388065,1.63,1798.8,1798.7,41.91155]
[1745764388267,5.352,1798.8,1798.7,41.91155]
[1745764389567,3.722,1798.8,1798.7,41.91155]
[1745764389767,3.722,1798.8,1798.7,43.20585]
[1745764391174,3.722,1798.8,1798.7,41.91155]
[1745764391575,5.4579,1798.8,1798.7,41.91155]
[1745764395372,3.722,1798.8,1798.7,41.91155]
[1745764395573,3.722,1798.8,1798.7,46.43425]
[1745764396677,3.722,1798.8,1798.7,45.11935]
[1745764396978,4.83349,1798.8,1798.7,40.8]
[1745764397167,6.56639,1798.8,1798.7,40.8]
[1745764397673,6.56639,1798.8,1798.7,43.50875]
[1745764397874,5.4549,1798.8,1798.7,43.50875]
[1745764398071,3.722,1798.8,1798.7,43.50875]
[1745764399380,4.83349,1798.8,1798.7,42.3972]
[1745764399582,6.56139,1798.8,1798.7,42.3972]
[1745764399879,5.4499,1798.8,1798.7,43.50875]
[1745764400375,1.11162,1798.6,1798.5,1.3502]
[1745764400577,1.11162,1798.6,1798.4,2.84281]
[1745764400779,2.83958,1798.5,1798.4,1.7311]
[1745764400978,4.17828,1798.5,1798.4,43.64284]
[1745764401278,6.7886,1798.5,1798.4,43.64284]
[1745764401776,6.7886,1798.5,1798.1,4.5692]
[1745764401986,3.96627,1798.4,1798.2,2.79443]
[1745764402278,2.6969,1798.3,1798.1,5.62858]
[1745764402480,1.5851,1798.2,1798.1,5.62858]
[1745764402673,1.5851,1798.2,1798.1,46.42858]
[1745764403077,5.3071,1798.2,1798.1,46.42858]
[1745764403377,5.3071,1798.2,1798.1,45.11968]
[1745764403978,3.722,1798.2,1798.1,48.11118]
[1745764405379,3.722,1798.2,1798.1,53.11118]
[1745764405978,3.722,1798.2,1798.1,48.11118]
[1745764409287,2.38784,1798.2,1798.1,53.11118]
[1745764410179,1.2326,1798.7,1798.6,1.11162]
[1745764410386,8.20422,1799.0,1798.8,1.11148]
[1745764410590,1.4085,1798.9,1798.8,1.11148]
[1745764410781,3.0749,1798.9,1798.8,1.11148]
[1745764411189,6.7969,1798.9,1798.8,1.11148]
[1745764411388,3.722,1798.9,1798.8,1.11148]
[1745764411579,3.722,1798.9,1798.8,4.31928]
[1745764411887,3.722,1798.9,1798.8,1.11148]
[1745764412985,3.722,1798.9,1798.8,4.31928]
[1745764418489,3.722,1798.9,1798.8,1.11148]
[1745764419390,3.722,1798.9,1798.8,2.72258]
[1745764423593,3.722,1798.9,1798.8,4.13928]
[1745764424006,3.722,1798.9,1798.8,2.72258]
[1745764424197,3.722,1798.9,1798.8,1.11148]
[1745764427998,3.722,1798.9,1798.8,2.75918]
[1745764430303,3.722,1798.9,1798.8,4.09388]
[1745764430502,3.722,1798.9,1798.8,5.45228]
[1745764431609,3.722,1798.9,1798.8,4.09388]
[1745764432801,3.722,1798.9,1798.8,1.11148]
[1745764433704,3.722,1798.9,1798.8,2.70858]
[1745764435712,3.722,1798.9,1798.8,1.11148]
[1745764438311,3.722,1798.9,1798.8,2.68758]
[1745764440750,1.87557247,1798.9,1798.8,7.68758]
[1745764440932,4.2104,1799.5,1799.4,1.11112]
[1745764441229,4.2104,1799.5,1799.4,41.91112]
[1745764442241,7.9324,1799.5,1799.4,41.91112]
[1745764443555,16.1402,1799.5,1799.1,3.2078]
[1745764443848,4.31899,1799.3,1799.1,1.11126]
[1745764444046,4.3343,1799.2,1799.1,1.11126]
[1745764444846,5.44554,1799.2,1799.0,41.91133]
[1745764445044,1.5777,1799.1,1799.0,41.91133]
[1745764446248,5.2997,1799.1,1799.0,41.91133]
[1745764447944,8.5075,1799.1,1799.0,1.11133]
[1745764448345,8.5075,1799.1,1799.0,41.91133]
[1745764448544,5.2997,1799.1,1799.0,41.91133]
[1745764451552,6.41101,1799.1,1799.0,40.8]
[1745764452156,1.11139,1799.0,1798.7,4.8038]
[1745764452359,2.72929,1799.0,1798.7,5.9153]
[1745764452542,1.3434,1798.9,1798.7,5.9153]
[1745764452764,1.2978,1798.8,1798.7,5.9153]
[1745764453249,6.6377,1798.8,1798.7,5.9153]
[1745764453552,6.6377,1798.8,1798.7,46.7153]
[1745764453748,7.74919,1798.8,1798.7,45.1193]
[1745764454044,7.74919,1798.8,1798.7,40.8]
[1745764454448,6.6377,1798.8,1798.5,4.8244]
[1745764454640,1.6831,1798.7,1798.6,1.11162]
[1745764454944,1.6831,1798.7,1798.6,41.91162]
[1745764455146,5.4051,1798.7,1798.6,41.91162]
[1745764456047,3.722,1798.7,1798.6,41.91162]
[1745764456243,3.722,1798.7,1798.6,43.52822]
[1745764456448,3.722,1798.7,1798.6,46.21342]
[1745764459128,3.722,1798.8,1798.7,1.11155]
[1745764459326,3.722,1798.8,1798.7,5.98175]
[1745764459625,3.722,1798.8,1798.7,10.98175]
[1745764460026,3.722,1798.8,1798.7,14.85675]
[1745764460427,1.73673889,1798.8,1798.7,14.85675]
[1745764460627,3.875,1799.4,1799.3,1.11118]
[1745764460926,4.2783,1799.6,1799.5,1.11106]
[1745764461226,8.0003,1799.6,1799.5,1.11106]
[1745764461622,6.6527,1799.6,1799.5,2.84896]
[1745764461821,5.0132,1799.6,1799.5,2.84896]
[1745764462230,6.6527,1799.6,1799.5,2.84896]
[1745764462420,3.722,1799.6,1799.5,2.84896]
[1745764462926,3.722,1799.6,1799.5,4.18316]
[1745764463127,3.722,1799.6,1799.5,44.98316]
[1745764463522,3.722,1799.6,1799.5,43.64896]
[1745764464127,3.722,1799.6,1799.5,41.91106]
[1745764464524,3.722,1799.6,1799.5,40.8]
[1745764464719,11.9298,1799.6,1799.1,3.2078]
[1745764465028,4.31895,1799.4,1799.1,3.2078]
[1745764465228,4.01198,1799.3,1799.1,1.11128]
[1745764465424,1.6032,1799.2,1799.1,1.11128]
[1745764465623,3.0111,1799.2,1799.1,1.11128]
[1745764466325,6.7331,1799.2,1799.1,1.11128]
[1745764469618,9.9409,1799.2,1799.1,1.11128]
[1745764469819,11.05216,1799.2,1799.0,41.91134]
[1745764470024,2.81901,1799.1,1798.9,1.11141]
[1745764470224,1.7077,1799.0,1798.9,1.11141]
[1745764471025,1.7077,1799.0,1798.8,40.8]
[1745764471232,2.6368,1798.9,1798.8,41.91149]
[1745764471623,4.3445,1798.9,1798.8,41.91149]
[1745764472030,4.3445,1798.9,1798.8,40.8]
[1745764472229,8.0665,1798.9,1798.8,41.91149]
[1745764476336,1.11149,1798.8,1798.7,3.2078]
[1745764476533,2.79049,1798.8,1798.6,1.11159]
[1745764476735,1.11159,1798.7,1798.5,2.70834]
[1745764476937,1.679,1798.6,1798.5,43.50834]
[1745764477243,1.679,1798.6,1798.3,1.41945]
[1745764477244,1.11173,1798.5,1798.3,2.53123]
[1745764477533,1.679,1798.4,1798.3,1.15023]
[1745764477740,1.679,1798.4,1798.3,41.95023]
[1745764478238,5.401,1798.4,1798.3,41.95023]
[1745764478737,5.401,1798.4,1798.3,40.83845]
[1745764478937,5.401,1798.4,1798.3,41.95025]
[1745764479732,3.722,1798.4,1798.3,41.95025]
[1745764479937,3.722,1798.4,1798.3,51.50085]
[1745764480443,3.722,1798.4,1798.3,53.24195]
[1745764480740,1.4284,1798.4,1798.3,53.24195]
[1745764480940,0.26376,1798.4,1798.3,53.24195]
[1745764481335,0.26376,1798.4,1798.3,48.24195]
[1745764486038,0.26376,1798.4,1798.3,45.03415]
[1745764486243,0.26376,1798.4,1798.3,48.24195]
[1745764487044,0.26376,1798.4,1798.3,48.2035]
[1745764490646,0.26376,1798.4,1798.3,44.9957]
[1745764490943,0.26376,1798.4,1798.3,48.2035]
[1745764491442,1e-05,1798.4,1798.3,48.2035]
[1745764491645,1e-05,1798.4,1798.3,57.0735]
[1745764492251,3.0118,1799.0,1798.9,1.11143]
[1745764493247,6.7338,1799.0,1798.9,1.11143]
[1745764496648,5.0076,1799.0,1798.9,1.11143]
[1745764497348,3.722,1799.0,1798.9,1.11143]
[1745764500653,5.3381,1799.0,1798.9,1.11143]
[1745764500848,6.44948,1799.0,1798.8,1.11145]
[1745764501151,1.6161,1798.9,1798.8,1.11145]
[1745764501347,3.722,1799.0,1798.9,2.78953]
[1745764501544,3.722,1799.0,1798.9,5.99733]
[1745764508759,3.722,1799.0,1798.9,4.31923]
[1745764508964,5.4594,1799.0,1798.9,4.31923]
[1745764511368,3.722,1799.0,1798.9,4.31923]
[1745764511756,3.722,1799.0,1798.9,5.97213]
[1745764516064,1e-05,1799.0,1798.9,5.97213]
[1745764516269,2.9314,1799.6,1799.5,1.11106]
[1745764516469,4.2892,1799.6,1799.5,1.11106]
[1745764517171,8.0112,1799.6,1799.5,1.11106]
[1745764517362,8.0112,1799.6,1799.5,41.91106]
[1745764517867,3.722,1799.6,1799.5,41.91106]
[1745764518172,3.722,1799.8,1799.7,1.11094]
[1745764518371,3.722,1799.8,1799.7,4.31874]
[1745764518775,3.722,1799.8,1799.7,5.89134]
[1745764519674,3.722,1799.8,1799.7,1.11094]
[1745764519971,5.3143,1799.8,1799.7,1.11094]
[1745764524071,5.3143,1799.8,1799.6,1.11095]
[1745764524369,1.6971,1799.7,1799.6,1.11095]
[1745764525280,2.7281,1799.9,1799.8,1.11087]
[1745764525478,4.4252,1799.9,1799.8,1.11087]
[1745764526080,8.1472,1799.9,1799.8,1.11087]
[1745764526580,3.722,1799.9,1799.8,2.80037]
[1745764526780,3.722,1799.9,1799.8,5.57057]
[1745764528880,3.722,1799.9,1799.8,14.43457]
[1745764528881,0.75742,1799.9,1799.8,14.43457]
[1745764529081,2.8042,1800.2,1799.8,14.43457]
[1745764529082,2.8042,1800.2,1800.1,1.11069]
[1745764529272,1.6415,1800.3,1800.2,1.11063]
[1745764529981,2.5505,1800.4,1800.3,1.11057]
[1745764530279,7.8525,1800.4,1800.3,1.11057]
[1745764540588,7.8525,1800.4,1800.3,2.79497]
[1745764541993,7.8525,1800.4,1800.3,1.11057]
[1745764542890,7.8525,1800.4,1800.3,2.73847]
[1745764545393,5.0007,1800.4,1800.3,2.73847]
[1745764545590,3.722,1800.4,1800.3,2.73847]
[1745764545793,2.35175,1800.4,1800.3,7.73847]
[1745764546194,2.8864,1800.8,1800.7,1.11032]
[1745764546393,2.8864,1800.8,1800.7,41.91032]
[1745764547192,6.6084,1800.8,1800.7,41.91032]
[1745764547892,3.722,1800.8,1800.7,41.91032]
[1745764548089,3.722,1800.8,1800.7,52.49322]
[1745764549297,3.0723,1801.1,1801.0,1.11013]
[1745764550292,6.7943,1801.1,1801.0,2.83503]
[1745764550494,5.0886,1801.1,1801.0,2.83503]
[1745764551296,2.56623,1801.1,1801.0,7.83503]
[1745764551794,2.56623,1801.1,1801.0,11.69203]
[1745764551988,2.56623,1801.1,1801.0,6.69203]
[1745764552191,1.6493,1801.4,1801.3,1.10995]
[1745764553086,5.3713,1801.4,1801.3,2.82275]
[1745764554697,5.3713,1801.4,1801.3,3.10025]
[1745764555195,5.3713,1801.4,1801.3,6.30805]
[1745764556796,3.722,1801.4,1801.3,6.30805]
[1745764557987,1.16206,1801.4,1801.3,6.30805]
[1745764558190,4.7902,1801.6,1801.5,1.10983]
[1745764558191,3.2078,1801.6,1801.5,1.10983]
[1745764558995,3.2078,1801.6,1801.5,2.72833]
[1745764559199,6.9298,1801.6,1801.5,2.72833]
[1745764559400,8.5241,1801.6,1801.5,2.72833]
[1745764561291,5.3163,1801.6,1801.5,2.72833]
[1745764563898,1.3032,1801.8,1801.7,1.1097]
[1745764564099,5.0252,1801.8,1801.7,4.3175]
[1745764564404,3.722,1801.8,1801.7,4.3175]
[1745764564590,3.722,1801.8,1801.7,46.7223]
[1745764566493,2.31045,1801.8,1801.7,46.7223]
[1745764566698,1.3122,1802.1,1801.8,2.77411]
[1745764566994,1.3122,1802.1,1802.0,4.31732]
[1745764567292,1.3658,1802.4,1802.3,1.10933]
[1745764567699,1.3658,1802.4,1802.3,41.90933]
[1745764567894,1.3658,1802.4,1802.3,43.62043]
[1745764568100,5.0878,1802.4,1802.3,41.90933]
[1745764568398,8.2956,1802.4,1802.3,41.90933]
[1745764568591,5.0878,1802.4,1802.3,41.90933]
[1745764569496,13.2956,1802.4,1802.3,40.8]
[1745764569697,13.39257572,1802.4,1802.3,41.90933]
[1745764569888,13.39257572,1802.4,1802.3,1.10933]
[1745764570093,8.10037572,1802.4,1802.3,1.10933]
[1745764570894,8.0034,1802.4,1802.3,1.10933]
[1745764571096,8.10037614,1802.4,1802.3,1.10933]
[1745764572195,8.0034,1802.4,1802.3,1.10933]
[1745764572803,6.88324,1802.4,1802.3,4.31713]
[1745764573601,2.30437,1802.4,1802.3,4.31713]
[1745764573898,2.30437,1802.4,1802.3,5.56073]
[1745764574102,3.722,1802.5,1802.4,1.10927]
[1745764574301,4.9895,1802.5,1802.4,2.81217]
[1745764574700,4.9895,1802.5,1802.4,2.80547953]
[1745764575201,6.6715,1802.5,1802.4,1.10257953]
[1745764575797,11.6715,1802.5,1802.3,1.38672]
[1745764575998,2.9081,1802.4,1802.3,0.2774]
[1745764576302,6.1159,1802.4,1802.3,0.2774]
[1745764577102,9.8379,1802.4,1802.3,0.2774]
[1745764579405,11.04414747,1802.4,1802.3,0.2774]
[1745764579904,16.04414747,1802.4,1802.3,1e-08]
[1745764580103,1.1095,1802.1,1801.7,1.10966]
[1745764580401,2.73180109,1802.0,1801.7,41.90966]
[1745764580590,4.2321,1802.0,1801.7,41.90966]
[1745764580793,1.5973,1801.9,1801.7,41.90966]
[1745764580993,1.5973,1801.9,1801.8,1.10964]
[1745764581195,5.3193,1801.9,1801.8,1.10964]
[1745764582000,5.3193,1801.9,1801.8,2.77644]
[1745764582804,5.3193,1801.9,1801.8,1.10964]
[1745764584098,5.3193,1801.9,1801.8,2.77644]
[1745764584610,5.3193,1801.9,1801.8,1.6668]
[1745764585104,1.10964,1801.8,1801.7,40.8]
[1745764585302,1.6328,1801.8,1801.7,41.9097]
[1745764585707,2.74244,1801.8,1801.7,40.8]
[1745764586099,6.46444,1801.8,1801.7,40.8]
[1745764586504,5.3548,1801.8,1801.7,43.5971]
[1745764587096,3.722,1801.8,1801.7,43.5971]
[1745764587302,3.722,1801.8,1801.7,44.9533]
[1745764592511,3.722,1801.8,1801.7,43.5971]
[1745764593713,3.44460002,1801.8,1801.7,43.5971]
[1745764594311,3.849,1802.1,1802.0,1.10952]
[1745764595212,7.571,1802.1,1802.0,1.10952]
[1745764595403,7.571,1802.1,1802.0,2.79142]
[1745764595912,3.722,1802.1,1802.0,5.99922]
[1745764601317,0.52848,1802.1,1802.0,10.99922]
[1745764601620,3.2078,1802.6,1802.5,1.10921]
[1745764601621,4.4503,1802.6,1802.5,1.10921]
[1745764602312,4.9645,1802.6,1802.5,1.10921]
[1745764602516,4.9645,1802.6,1802.5,2.78551]
[1745764603401,6.6437,1802.6,1802.5,2.78551]
[1745764605002,3.722,1802.6,1802.5,2.78551]
[1745764605208,3.722,1802.6,1802.5,4.06821]
[1745764607012,3.722,1802.6,1802.5,2.78551]
[1745764607606,6.6426,1802.6,1802.5,2.78551]
[1745764609013,4.9756,1802.6,1802.5,2.78551]
[1745764610415,6.5858,1802.6,1802.5,2.78551]
[1745764611221,6.5858,1802.6,1802.5,1.10921]
[1745764613017,6.5858,1802.6,1802.5,2.79501]
[1745764613212,4.9756,1802.6,1802.5,2.79501]
[1745764613922,6.6576,1802.6,1802.5,2.79501]
[1745764614921,3.722,1802.6,1802.5,2.79501]
[1745764615126,3.722,1802.6,1802.5,4.09661]
[1745764617925,3.722,1802.6,1802.5,44.89661]
[1745764620928,3.722,1802.6,1802.5,43.59501]
[1745764629534,2.46013,1802.6,1802.5,43.59501]
[1745764629736,0.00027,1802.6,1802.5,43.59501]
[1745764630026,0.00027,1802.6,1802.5,47.43501]
[1745764630232,2.6153,1802.9,1802.8,1.10903]
[1745764630832,4.1819,1802.9,1802.8,1.10903]
[1745764631233,7.9039,1802.9,1802.8,1.10903]
[1745764632727,17.2207,1802.9,1802.5,40.8]
[1745764632931,1.5666,1802.8,1802.7,1.10909]
[1745764633132,5.2886,1802.8,1802.7,1.10909]
[1745764633333,5.38555697,1802.8,1802.7,1.10909]
[1745764633534,5.2886,1802.8,1802.7,1.10909]
[1745764633734,5.38555639,1802.8,1802.7,1.10909]
[1745764634131,5.2886,1802.8,1802.7,1.10909]
[1745764635537,5.2886,1802.8,1802.7,2.35149]
[1745764636042,3.722,1802.8,1802.7,2.35149]
[1745764636340,3.722,1802.8,1802.7,3.63269]
[1745764636840,2.58062,1802.8,1802.7,6.84049]
[1745764639245,3.722,1802.9,1802.8,1.10903]
[1745764639542,3.722,1802.9,1802.8,2.67863]
[1745764645842,3.722,1802.9,1802.8,1.10903]
[1745764646345,8.722,1802.9,1802.7,4.31685]
[1745764646536,4.3525,1802.8,1802.7,4.31685]
[1745764646937,5.46156,1802.8,1802.5,45.6827]
[1745764647142,1.733,1802.7,1802.6,1.10913]
[1745764647345,1.733,1802.7,1802.5,45.11696]
[1745764647541,1.733,1802.7,1802.6,1.10915]
[1745764648047,10.455,1802.7,1802.6,1.10915]
[1745764649352,5.455,1802.7,1802.6,1.10915]
[1745764651852,5.455,1802.7,1802.5,44.0078]
[1745764652150,1.665,1802.6,1802.5,44.0078]
[1745764653153,5.387,1802.6,1802.5,44.0078]
[1745764654046,6.49615,1802.6,1802.5,40.8]
[1745764654651,5.387,1802.6,1802.5,40.8]
[1745764654843,6.49615,1802.6,1802.5,40.8]
[1745764659351,6.49615,1802.6,1802.5,42.4912]
[1745764661149,6.49615,1802.6,1802.5,1.6912]
[1745764661553,1.10927,1802.4,1802.3,4.31709]
[1745764661753,1.10927,1802.4,1802.3,46.73499]
[1745764662255,3.722,1802.4,1802.3,46.73499]
[1745764662854,4.83127,1802.4,1802.3,46.73499]
[1745764663054,3.722,1802.4,1802.3,46.73499]
[1745764664251,1.1091,1802.7,1802.5,1.10918]
[1745764664551,1.1091,1802.7,1802.6,3.0056]
[1745764665159,4.8311,1802.7,1802.6,3.0056]
[1745764665556,3.722,1802.7,1802.6,3.0056]
[1745764665858,4.83109,1802.7,1802.6,3.0056]
[1745764666061,6.49919,1802.7,1802.6,3.0056]
[1745764666860,6.49919,1802.7,1802.6,1.6405]
[1745764667950,5.3901,1802.7,1802.6,1.6405]
[1745764668850,5.3901,1802.7,1802.6,2.74965]
[1745764670458,3.722,1802.7,1802.6,2.74965]
[1745764674260,5.3976,1802.7,1802.6,2.74965]
[1745764679265,5.3976,1802.7,1802.6,1.10915]
[1745764679466,6.50669,1802.7,1802.6,1.10915]
[1745764679670,1.10916,1802.6,1802.4,1.6989]
[1745764679871,1.6344,1802.5,1802.4,2.80814]
[1745764680071,2.9801,1802.5,1802.4,2.80814]
[1745764680272,6.7021,1802.5,1802.4,2.80814]
[1745764680571,1.1093,1802.4,1801.9,5.98163]
[1745764680871,4.6094,1802.3,1802.1,2.80832]
[1745764681063,1.6344,1802.2,1802.1,43.60832]